[Event "*** Titled Tuesday Blitz"]
[Site "Chess.com"]
[Date "2019.01.01"]
[Round "8"]
[White "WPWPWP-2015"]
[Black "m3alam"]
[Result "1-0"]
[WhiteElo "2312"]
[BlackElo "2126"]
[TimeControl "180+2"]
[EndTime "14:58:13 PST"]
[Termination "WPWPWP-2015 won on time"]

1. d4 {[%clk 0:03:01.9]} 1... g6 {[%clk 0:02:59.7]} 2. e4 {[%clk 0:03:01.4]}
2... Bg7 {[%clk 0:03:01.6]} 3. Nc3 {[%clk 0:03:01.8]} 3... c5 {[%clk 0:03:02.8]}
4. Nf3 {[%clk 0:03:01.8]} 4... cxd4 {[%clk 0:03:02.8]} 5. Nxd4 {[%clk
0:03:02.5]} 5... Nc6 {[%clk 0:03:04.7]} 6. Be3 {[%clk 0:03:02.4]} 6... Qa5
{[%clk 0:03:00.9]} 7. Be2 {[%clk 0:03:00.4]} 7... Nf6 {[%clk 0:02:52.9]} 8. O-O
{[%clk 0:03:00]} 8... O-O {[%clk 0:02:50.4]} 9. Nb3 {[%clk 0:02:56.2]} 9... Qc7
{[%clk 0:02:45.5]} 10. Nd5 {[%clk 0:02:51.7]} 10... Nxd5 {[%clk 0:02:42]} 11.
exd5 {[%clk 0:02:52.4]} 11... Ne5 {[%clk 0:02:36.3]} 12. Bd4 {[%clk 0:02:43.8]}
12... a5 {[%clk 0:02:26.9]} 13. a4 {[%clk 0:02:25.7]} 13... d6 {[%clk
0:02:24.7]} 14. Rc1 {[%clk 0:02:19.1]} 14... Bh6 {[%clk 0:02:21.5]} 15. f4
{[%clk 0:02:18.9]} 15... Nc4 {[%clk 0:02:16]} 16. Qd3 {[%clk 0:02:15.9]} 16...
Nb6 {[%clk 0:02:03.4]} 17. Qb5 {[%clk 0:02:09.8]} 17... Nd7 {[%clk 0:01:48.4]}
18. Qd3 {[%clk 0:01:59]} 18... b6 {[%clk 0:01:41.2]} 19. c4 {[%clk 0:01:56.6]}
19... Nc5 {[%clk 0:01:33.6]} 20. Nxc5 {[%clk 0:01:49]} 20... bxc5 {[%clk
0:01:20.4]} 21. Bc3 {[%clk 0:01:49.5]} 21... Rb8 {[%clk 0:01:18.1]} 22. Rb1
{[%clk 0:01:43.7]} 22... Bf5 {[%clk 0:01:07.5]} 23. Qd2 {[%clk 0:01:38.6]} 23...
Bxb1 {[%clk 0:01:07.3]} 24. Bxa5 {[%clk 0:01:35]} 24... Qb7 {[%clk 0:01:05.7]}
25. Rxb1 {[%clk 0:01:32.9]} 25... Qb3 {[%clk 0:01:02.6]} 26. Bc3 {[%clk
0:01:23.1]} 26... Qxa4 {[%clk 0:01:02.2]} 27. Qd3 {[%clk 0:01:07.9]} 27... Rb3
{[%clk 0:00:55.4]} 28. Bd1 {[%clk 0:01:05.1]} 28... Bxf4 {[%clk 0:00:36]} 29.
Qe4 {[%clk 0:00:48.6]} 29... Bh6 {[%clk 0:00:24.3]} 30. Bxb3 {[%clk 0:00:40.3]}
30... Qxb3 {[%clk 0:00:23.9]} 31. Qxe7 {[%clk 0:00:34.3]} 31... Qc2 {[%clk
0:00:15.9]} 32. Rf1 {[%clk 0:00:25.9]} 32... Bg7 {[%clk 0:00:15.3]} 33. Bxg7
{[%clk 0:00:23.1]} 33... Kxg7 {[%clk 0:00:17.2]} 34. Qxd6 {[%clk 0:00:23]} 34...
Qxc4 {[%clk 0:00:17.8]} 35. Qe5+ {[%clk 0:00:18.8]} 35... Kg8 {[%clk 0:00:17.5]}
36. d6 {[%clk 0:00:19.5]} 36... Rd8 {[%clk 0:00:14]} 37. Rd1 {[%clk 0:00:13.6]}
37... Qc2 {[%clk 0:00:11.6]} 38. Qd5 {[%clk 0:00:11]} 38... c4 {[%clk
0:00:10.6]} 39. d7 {[%clk 0:00:10.3]} 39... Qxb2 {[%clk 0:00:05.7]} 40. Qxc4
{[%clk 0:00:10]} 40... Qb6+ {[%clk 0:00:07.1]} 41. Kf1 {[%clk 0:00:07.2]} 41...
Qb7 {[%clk 0:00:07.4]} 42. Qd4 {[%clk 0:00:07.2]} 42... Qb5+ {[%clk 0:00:06.9]}
43. Kg1 {[%clk 0:00:07.9]} 43... Qh5 {[%clk 0:00:08.1]} 44. h3 {[%clk
0:00:08.2]} 44... Qe2 {[%clk 0:00:06.9]} 45. Kh2 {[%clk 0:00:08.8]} 45... Qe6
{[%clk 0:00:07.2]} 46. Rd3 {[%clk 0:00:08.7]} 46... h5 {[%clk 0:00:08.4]} 47.
Rd2 {[%clk 0:00:07.5]} 47... h4 {[%clk 0:00:09.5]} 48. Rd3 {[%clk 0:00:08.1]}
48... g5 {[%clk 0:00:10.8]} 49. Rd2 {[%clk 0:00:05.3]} 49... Qf5 {[%clk
0:00:12.2]} 50. Rd3 {[%clk 0:00:05.6]} 50... Kf8 {[%clk 0:00:13.2]} 51. Qd6+
{[%clk 0:00:05.6]} 51... Kg7 {[%clk 0:00:13.2]} 52. Rd5 {[%clk 0:00:05.4]} 52...
Qf4+ {[%clk 0:00:14]} 53. Qxf4 {[%clk 0:00:06]} 53... gxf4 {[%clk 0:00:15.9]}
54. Rf5 {[%clk 0:00:06.4]} 54... Rxd7 {[%clk 0:00:15]} 55. Rxf4 {[%clk
0:00:07.7]} 55... Kg6 {[%clk 0:00:14.8]} 56. Rxh4 {[%clk 0:00:08.5]} 56... f5
{[%clk 0:00:16.2]} 57. Rh8 {[%clk 0:00:08.5]} 57... Rd2 {[%clk 0:00:16.2]} 58.
Rg8+ {[%clk 0:00:08.5]} 58... Kh5 {[%clk 0:00:16.2]} 59. Kg3 {[%clk 0:00:08.5]}
59... f4+ {[%clk 0:00:13.9]} 60. Kxf4 {[%clk 0:00:07.1]} 60... Rd4+ {[%clk
0:00:10.8]} 61. Kf5 {[%clk 0:00:06.8]} 61... Kh4 {[%clk 0:00:11.1]} 62. Rg4+
{[%clk 0:00:06.3]} 62... Rxg4 {[%clk 0:00:09.8]} 63. hxg4 {[%clk 0:00:06.8]}
63... Kg3 {[%clk 0:00:08.2]} 64. g5 {[%clk 0:00:07.9]} 64... Kxg2 {[%clk
0:00:10.1]} 65. g6 {[%clk 0:00:09.1]} 1-0

[Event "*** Titled Tuesday Blitz"]
[Site "Chess.com"]
[Date "2019.01.01"]
[Round "8"]
[White "champ2005"]
[Black "Hrant_ChessMood"]
[Result "1-0"]
[WhiteElo "2658"]
[BlackElo "2933"]
[TimeControl "180+2"]
[EndTime "14:58:23 PST"]
[Termination "champ2005 won by resignation"]

1. e4 {[%clk 0:03:00.9]} 1... c5 {[%clk 0:02:59.9]} 2. Nf3 {[%clk 0:03:01.7]}
2... Nc6 {[%clk 0:03:01.1]} 3. d4 {[%clk 0:03:02.6]} 3... cxd4 {[%clk
0:02:55.4]} 4. Nxd4 {[%clk 0:03:04.5]} 4... g6 {[%clk 0:02:57.3]} 5. c4 {[%clk
0:03:04.8]} 5... Nf6 {[%clk 0:02:58.1]} 6. Nc3 {[%clk 0:03:05.3]} 6... d6 {[%clk
0:02:54.3]} 7. Be2 {[%clk 0:03:04.3]} 7... Nxd4 {[%clk 0:02:50.1]} 8. Qxd4
{[%clk 0:03:06.2]} 8... Bg7 {[%clk 0:02:52]} 9. Be3 {[%clk 0:03:07]} 9... O-O
{[%clk 0:02:52.7]} 10. Qd2 {[%clk 0:03:07.9]} 10... a5 {[%clk 0:02:50.6]} 11.
O-O {[%clk 0:03:06.8]} 11... a4 {[%clk 0:02:48.4]} 12. f3 {[%clk 0:03:07.7]}
12... Qa5 {[%clk 0:02:49.4]} 13. Rac1 {[%clk 0:03:03.3]} 13... Be6 {[%clk
0:02:46.8]} 14. Nd5 {[%clk 0:02:54.5]} 14... Qxd2 {[%clk 0:02:41.7]} 15. Nxe7+
{[%clk 0:02:39.8]} 15... Kh8 {[%clk 0:02:42.5]} 16. Bxd2 {[%clk 0:02:41.3]}
16... Rfe8 {[%clk 0:02:44.1]} 17. Nd5 {[%clk 0:02:42.4]} 17... Nxd5 {[%clk
0:02:45.6]} 18. cxd5 {[%clk 0:02:43.6]} 18... Bxd5 {[%clk 0:02:47.5]} 19. Bc4
{[%clk 0:02:34.5]} 19... Bxc4 {[%clk 0:01:47.6]} 20. Rxc4 {[%clk 0:02:35.7]}
20... Bxb2 {[%clk 0:01:47.8]} 21. Rb1 {[%clk 0:02:30]} 21... a3 {[%clk
0:01:40.3]} 22. Bc3+ {[%clk 0:02:31]} 22... Bxc3 {[%clk 0:01:40.5]} 23. Rxc3
{[%clk 0:02:32.9]} 23... Re7 {[%clk 0:01:39.1]} 24. Rbb3 {[%clk 0:02:30.6]}
24... Kg7 {[%clk 0:01:28.3]} 25. Rxa3 {[%clk 0:02:31.4]} 25... Rd8 {[%clk
0:01:18.3]} 26. Rd3 {[%clk 0:02:27.7]} 26... f5 {[%clk 0:01:08.1]} 27. exf5
{[%clk 0:02:20]} 27... gxf5 {[%clk 0:01:10]} 28. Ra5 {[%clk 0:02:11.9]} 28...
Kf6 {[%clk 0:01:09.8]} 29. Rad5 {[%clk 0:02:10]} 29... Re6 {[%clk 0:01:07.8]}
30. R3d4 {[%clk 0:02:02]} 30... h6 {[%clk 0:01:01.6]} 31. Kf2 {[%clk 0:02:00.5]}
31... Rd7 {[%clk 0:00:58.2]} 32. a4 {[%clk 0:01:55.8]} 32... Kg6 {[%clk
0:00:51.8]} 33. Kg3 {[%clk 0:01:53.2]} 33... Rf6 {[%clk 0:00:50.4]} 34. Kf4
{[%clk 0:01:52.1]} 34... Rd8 {[%clk 0:00:51.5]} 35. g3 {[%clk 0:01:49.6]} 35...
Rd7 {[%clk 0:00:51.9]} 36. h4 {[%clk 0:01:48.4]} 36... h5 {[%clk 0:00:48.3]} 37.
a5 {[%clk 0:01:44.4]} 37... Rd8 {[%clk 0:00:49.2]} 38. Rb4 {[%clk 0:01:41]}
38... Rd7 {[%clk 0:00:50.3]} 39. Rb6 {[%clk 0:01:36]} 39... Rc7 {[%clk
0:00:27.7]} 40. Rbxd6 {[%clk 0:01:29]} 40... Rc4+ {[%clk 0:00:13.4]} 41. Ke5
{[%clk 0:01:23.3]} 41... Rxd6 {[%clk 0:00:13.9]} 42. Rxd6+ {[%clk 0:01:25.2]}
42... Kf7 {[%clk 0:00:15.2]} 43. Rf6+ {[%clk 0:01:20.6]} 43... Ke7 {[%clk
0:00:15.8]} 44. Rxf5 {[%clk 0:01:20.9]} 44... Ra4 {[%clk 0:00:17.3]} 45. Rg5
{[%clk 0:01:05.9]} 45... Rxa5+ {[%clk 0:00:17.4]} 46. Ke4 {[%clk 0:01:02.7]}
46... Ra4+ {[%clk 0:00:18.2]} 47. Kf5 {[%clk 0:00:49.4]} 47... Ra5+ {[%clk
0:00:18.1]} 48. Kg6 {[%clk 0:00:38]} 48... Ra3 {[%clk 0:00:19.1]} 49. f4 {[%clk
0:00:32.4]} 49... b5 {[%clk 0:00:19.3]} 50. Kxh5 {[%clk 0:00:32.5]} 50... b4
{[%clk 0:00:20.2]} 51. g4 {[%clk 0:00:32.6]} 51... Rf3 {[%clk 0:00:14.8]} 52. f5
{[%clk 0:00:30.2]} 52... b3 {[%clk 0:00:13.5]} 53. Rg7+ {[%clk 0:00:31]} 53...
Kf6 {[%clk 0:00:15.1]} 54. Rb7 {[%clk 0:00:28.4]} 54... Ke5 {[%clk 0:00:16.1]}
55. Rb5+ {[%clk 0:00:25.8]} 55... Kd4 {[%clk 0:00:17.1]} 56. Kg5 {[%clk
0:00:26.8]} 56... Kc4 {[%clk 0:00:18.5]} 57. Rb8 {[%clk 0:00:26.9]} 57... Rd3
{[%clk 0:00:19.5]} 58. h5 {[%clk 0:00:24.8]} 58... Kc3 {[%clk 0:00:20.3]} 59. h6
{[%clk 0:00:22.5]} 59... b2 {[%clk 0:00:21.7]} 60. h7 {[%clk 0:00:15.6]} 60...
Rh3 {[%clk 0:00:23.1]} 61. Kg6 {[%clk 0:00:15.6]} 61... Rh1 {[%clk 0:00:24.6]}
62. g5 {[%clk 0:00:15.1]} 62... Kc2 {[%clk 0:00:24]} 63. f6 {[%clk 0:00:15.2]}
63... b1=Q {[%clk 0:00:23.4]} 64. Rxb1 {[%clk 0:00:16.9]} 64... Kxb1 {[%clk
0:00:25.3]} 65. f7 {[%clk 0:00:18]} 65... Kc2 {[%clk 0:00:27.2]} 66. f8=Q {[%clk
0:00:19]} 1-0

[Event "*** Titled Tuesday Blitz"]
[Site "Chess.com"]
[Date "2019.01.01"]
[Round "8"]
[White "DanielMieles1985"]
[Black "mishanick"]
[Result "1-0"]
[WhiteElo "2472"]
[BlackElo "2962"]
[TimeControl "180+2"]
[EndTime "14:58:58 PST"]
[Termination "DanielMieles1985 won by resignation"]

1. d4 {[%clk 0:03:00.9]} 1... Nf6 {[%clk 0:02:55]} 2. c4 {[%clk 0:03:02]} 2...
e6 {[%clk 0:02:55.7]} 3. Nf3 {[%clk 0:03:02.4]} 3... d5 {[%clk 0:02:56.9]} 4.
Nc3 {[%clk 0:03:03]} 4... dxc4 {[%clk 0:02:56.3]} 5. e4 {[%clk 0:03:02]} 5... b5
{[%clk 0:02:56.6]} 6. e5 {[%clk 0:03:02.1]} 6... Nd5 {[%clk 0:02:57.9]} 7. Nxb5
{[%clk 0:03:03.1]} 7... Nb6 {[%clk 0:02:59.6]} 8. Be2 {[%clk 0:03:04]} 8... Nc6
{[%clk 0:02:59.9]} 9. O-O {[%clk 0:03:03.5]} 9... Be7 {[%clk 0:03:01.5]} 10. b3
{[%clk 0:03:03.1]} 10... cxb3 {[%clk 0:03:01.1]} 11. axb3 {[%clk 0:03:04.4]}
11... O-O {[%clk 0:03:02.8]} 12. Qd3 {[%clk 0:03:05]} 12... a5 {[%clk
0:02:56.7]} 13. Qe4 {[%clk 0:03:04.5]} 13... Bb7 {[%clk 0:02:56.9]} 14. Qg4
{[%clk 0:03:05.5]} 14... Kh8 {[%clk 0:02:50]} 15. Rd1 {[%clk 0:03:04.3]} 15...
Ba6 {[%clk 0:02:49.8]} 16. Qh5 {[%clk 0:02:57.2]} 16... Qd7 {[%clk 0:02:44.6]}
17. Bd3 {[%clk 0:02:45.6]} 17... g6 {[%clk 0:02:45.2]} 18. Qh6 {[%clk
0:02:43.9]} 18... Nb4 {[%clk 0:02:31.1]} 19. Bg5 {[%clk 0:01:48.4]} 19... N6d5
{[%clk 0:02:17.1]} 20. Bc4 {[%clk 0:01:40.1]} 20... Bxb5 {[%clk 0:01:58.2]} 21.
Bxb5 {[%clk 0:01:40.8]} 21... c6 {[%clk 0:01:59.3]} 22. Bc4 {[%clk 0:01:39.4]}
22... f5 {[%clk 0:01:38.7]} 23. exf6 {[%clk 0:01:37.3]} 23... Bxf6 {[%clk
0:01:38.2]} 24. Bxf6+ {[%clk 0:01:35.5]} 24... Rxf6 {[%clk 0:01:38.7]} 25. Ne5
{[%clk 0:01:31.5]} 25... Qe7 {[%clk 0:01:38.4]} 26. Bxd5 {[%clk 0:01:27.9]}
26... exd5 {[%clk 0:01:26.1]} 27. Re1 {[%clk 0:01:16.5]} 27... Qf8 {[%clk
0:01:24.9]} 28. Qxf8+ {[%clk 0:00:53.3]} 28... Rfxf8 {[%clk 0:01:26.8]} 29. Rec1
{[%clk 0:00:51.2]} 29... Rf6 {[%clk 0:01:26.7]} 30. f3 {[%clk 0:00:50.7]} 30...
Kg7 {[%clk 0:01:16.1]} 31. Rc5 {[%clk 0:00:50.1]} 31... Rf4 {[%clk 0:01:16.3]}
32. Rd1 {[%clk 0:00:45.9]} 32... Ra6 {[%clk 0:01:14.7]} 33. g3 {[%clk
0:00:43.1]} 33... Rf8 {[%clk 0:01:15.1]} 34. f4 {[%clk 0:00:44.6]} 34... Rfa8
{[%clk 0:01:14.8]} 35. Ra1 {[%clk 0:00:40.5]} 35... Kf6 {[%clk 0:01:14.9]} 36.
Kf2 {[%clk 0:00:41]} 36... Ke6 {[%clk 0:01:15.5]} 37. Ke3 {[%clk 0:00:42.2]}
37... Kd6 {[%clk 0:01:16.8]} 38. Kd2 {[%clk 0:00:42.2]} 38... a4 {[%clk
0:01:17]} 39. bxa4 {[%clk 0:00:39.6]} 39... Rxa4 {[%clk 0:01:18.9]} 40. Rxa4
{[%clk 0:00:40.3]} 40... Rxa4 {[%clk 0:01:20.8]} 41. Nf7+ {[%clk 0:00:40.6]}
41... Kc7 {[%clk 0:01:20.2]} 42. Ng5 {[%clk 0:00:29.6]} 42... Na6 {[%clk
0:01:17]} 43. Rc2 {[%clk 0:00:24]} 43... Rxd4+ {[%clk 0:01:17.9]} 44. Ke3 {[%clk
0:00:25.2]} 44... Ra4 {[%clk 0:01:18.7]} 45. Ne6+ {[%clk 0:00:26.5]} 45... Kd6
{[%clk 0:01:18.8]} 46. Nf8 {[%clk 0:00:28.1]} 46... c5 {[%clk 0:01:19.2]} 47.
Nxh7 {[%clk 0:00:28.8]} 47... Ra3+ {[%clk 0:01:20.2]} 48. Kf2 {[%clk 0:00:29]}
48... Nb4 {[%clk 0:01:20.8]} 49. Re2 {[%clk 0:00:29]} 49... c4 {[%clk
0:01:21.6]} 50. f5 {[%clk 0:00:25.8]} 50... gxf5 {[%clk 0:01:21.9]} 51. Ng5
{[%clk 0:00:26.6]} 51... Nd3+ {[%clk 0:01:23]} 52. Kg2 {[%clk 0:00:27]} 52... c3
{[%clk 0:01:24.4]} 53. Nf3 {[%clk 0:00:17.9]} 53... c2 {[%clk 0:01:24.6]} 54.
Rxc2 {[%clk 0:00:17.5]} 54... Nc5 {[%clk 0:01:24.3]} 55. Rd2 {[%clk 0:00:18.4]}
55... Ne4 {[%clk 0:01:25.3]} 56. Rb2 {[%clk 0:00:19.4]} 56... Kc5 {[%clk
0:01:22.9]} 57. h4 {[%clk 0:00:20.5]} 57... d4 {[%clk 0:01:23.7]} 58. h5 {[%clk
0:00:21.5]} 58... Ra6 {[%clk 0:01:15.2]} 59. Rb8 {[%clk 0:00:20.7]} 59... d3
{[%clk 0:01:16.3]} 60. Rd8 {[%clk 0:00:20.7]} 60... Ra2+ {[%clk 0:01:13.7]} 61.
Kh3 {[%clk 0:00:20.7]} 61... Ra1 {[%clk 0:01:13.2]} 62. h6 {[%clk 0:00:17.9]}
62... Kb4 {[%clk 0:00:44.2]} 63. h7 {[%clk 0:00:16.2]} 63... Rh1+ {[%clk
0:00:44.6]} 64. Nh2 {[%clk 0:00:17.1]} 64... Ng5+ {[%clk 0:00:16.1]} 65. Kg2
{[%clk 0:00:15.9]} 65... Rxh2+ {[%clk 0:00:16.3]} 66. Kxh2 {[%clk 0:00:16.7]}
66... Nxh7 {[%clk 0:00:18.2]} 67. Rxd3 {[%clk 0:00:13.7]} 67... Nf6 {[%clk
0:00:18.5]} 68. Rd6 {[%clk 0:00:12.1]} 68... Ng4+ {[%clk 0:00:17.7]} 69. Kh3
{[%clk 0:00:12.1]} 69... Kc5 {[%clk 0:00:19.3]} 70. Rd8 {[%clk 0:00:13.3]} 70...
Kc6 {[%clk 0:00:18.9]} 71. Kh4 {[%clk 0:00:14.4]} 71... Kc7 {[%clk 0:00:20.5]}
72. Rd2 {[%clk 0:00:11.3]} 72... Ne5 {[%clk 0:00:21]} 73. Rf2 {[%clk 0:00:07.8]}
73... Ng6+ {[%clk 0:00:22.1]} 74. Kg5 {[%clk 0:00:08.2]} 74... Ne7 {[%clk
0:00:23.2]} 75. Rxf5 {[%clk 0:00:09.7]} 75... Kd6 {[%clk 0:00:24.5]} 76. Rf1
{[%clk 0:00:10.4]} 76... Nc6 {[%clk 0:00:25.1]} 77. Rf6+ {[%clk 0:00:11.1]}
77... Kd7 {[%clk 0:00:26.5]} 78. Rxc6 {[%clk 0:00:12.2]} 78... Kxc6 {[%clk
0:00:28.4]} 79. Kf6 {[%clk 0:00:13.6]} 79... Kd7 {[%clk 0:00:30.3]} 80. g4
{[%clk 0:00:14.9]} 80... Ke8 {[%clk 0:00:32.2]} 81. Kg7 {[%clk 0:00:16.1]} 81...
Ke7 {[%clk 0:00:33.7]} 82. g5 {[%clk 0:00:17.6]} 82... Ke6 {[%clk 0:00:35.2]}
83. g6 {[%clk 0:00:19.1]} 83... Kf5 {[%clk 0:00:37.1]} 84. Kh7 {[%clk
0:00:20.5]} 84... Kg5 {[%clk 0:00:39]} 85. g7 {[%clk 0:00:22]} 85... Kh5 {[%clk
0:00:40.3]} 86. g8=Q {[%clk 0:00:22.4]} 86... Kh4 {[%clk 0:00:42.2]} 87. Qg6
{[%clk 0:00:23]} 1-0

[Event "*** Titled Tuesday Blitz"]
[Site "Chess.com"]
[Date "2019.01.01"]
[Round "8"]
[White "Korchmar_Vasiliy"]
[Black "GadimbayliA"]
[Result "1/2-1/2"]
[WhiteElo "2791"]
[BlackElo "2782"]
[TimeControl "180+2"]
[EndTime "14:59:00 PST"]
[Termination "Game drawn by agreement"]

1. d4 {[%clk 0:03:01.4]} 1... Nf6 {[%clk 0:03:00.2]} 2. c4 {[%clk 0:03:01.9]}
2... e5 {[%clk 0:03:00.2]} 3. dxe5 {[%clk 0:03:00.9]} 3... Ng4 {[%clk
0:03:01.2]} 4. Bf4 {[%clk 0:03:02.3]} 4... Nc6 {[%clk 0:03:01.8]} 5. Nf3 {[%clk
0:03:03]} 5... Bb4+ {[%clk 0:03:02.9]} 6. Nbd2 {[%clk 0:02:56.2]} 6... Qe7
{[%clk 0:03:03.9]} 7. e3 {[%clk 0:02:57.2]} 7... Ngxe5 {[%clk 0:03:04.4]} 8. Be2
{[%clk 0:02:54.8]} 8... Nxf3+ {[%clk 0:02:54.6]} 9. Bxf3 {[%clk 0:02:56.7]} 9...
d6 {[%clk 0:02:52.1]} 10. O-O {[%clk 0:02:56.7]} 10... Bd7 {[%clk 0:02:51.3]}
11. Nb3 {[%clk 0:02:57.1]} 11... O-O-O {[%clk 0:02:46.8]} 12. a3 {[%clk
0:02:51.1]} 12... Bc5 {[%clk 0:02:47.8]} 13. Nxc5 {[%clk 0:02:50.5]} 13... dxc5
{[%clk 0:02:48.6]} 14. b4 {[%clk 0:02:29.4]} 14... g5 {[%clk 0:02:42.4]} 15. Bg3
{[%clk 0:02:30.2]} 15... h5 {[%clk 0:02:37.8]} 16. Bxh5 {[%clk 0:02:25.3]} 16...
Bf5 {[%clk 0:02:37.6]} 17. Qf3 {[%clk 0:02:22.5]} 17... Be4 {[%clk 0:02:35.1]}
18. Qxf7 {[%clk 0:02:19.6]} 18... Qxf7 {[%clk 0:01:45.3]} 19. Bxf7 {[%clk
0:02:21.5]} 19... Rhf8 {[%clk 0:01:47]} 20. Be6+ {[%clk 0:02:21.2]} 20... Kb8
{[%clk 0:01:47.5]} 21. bxc5 {[%clk 0:02:19.3]} 21... Rfe8 {[%clk 0:01:45.9]} 22.
Bg4 {[%clk 0:02:13.2]} 22... Na5 {[%clk 0:01:46.4]} 23. Rad1 {[%clk 0:01:48]}
23... Bd3 {[%clk 0:01:39.5]} 24. Rfe1 {[%clk 0:01:48.4]} 24... Nxc4 {[%clk
0:01:40.3]} 25. h4 {[%clk 0:01:40]} 25... Nxa3 {[%clk 0:01:38.3]} 26. hxg5
{[%clk 0:01:36.7]} 26... Nc2 {[%clk 0:01:36.8]} 27. Rxd3 {[%clk 0:01:30]} 27...
Rxd3 {[%clk 0:01:38.7]} 28. Rb1 {[%clk 0:01:31.6]} 28... a5 {[%clk 0:01:32.7]}
29. c6 {[%clk 0:01:29.3]} 29... Nb4 {[%clk 0:01:33.1]} 30. cxb7 {[%clk
0:01:30.3]} 30... Rd5 {[%clk 0:01:29.3]} 31. Rc1 {[%clk 0:01:20.6]} 31... Na6
{[%clk 0:01:25.3]} 32. g6 {[%clk 0:01:14.1]} 32... Rg5 {[%clk 0:01:24.3]} 33.
Bf3 {[%clk 0:01:15.7]} 33... a4 {[%clk 0:00:58.5]} 34. Bf4 {[%clk 0:01:10.6]}
34... Rxg6 {[%clk 0:00:55.3]} 35. Bh5 {[%clk 0:01:11.8]} 35... Reg8 {[%clk
0:00:52]} 36. Bxg6 {[%clk 0:01:13]} 36... Rxg6 {[%clk 0:00:53.9]} 37. Rc4 {[%clk
0:01:07.1]} 37... Kxb7 {[%clk 0:00:51.9]} 38. Rxa4 {[%clk 0:01:08.7]} 38... c5
{[%clk 0:00:53.8]} 39. Kf1 {[%clk 0:01:02.5]} 39... Kb6 {[%clk 0:00:53.5]} 40.
Ra1 {[%clk 0:00:59.1]} 40... Kb5 {[%clk 0:00:51.3]} 41. Rb1+ {[%clk 0:01:00.4]}
41... Nb4 {[%clk 0:00:51.1]} 42. e4 {[%clk 0:00:55.6]} 42... Ka4 {[%clk
0:00:48.2]} 43. Bd2 {[%clk 0:00:49.5]} 43... Na2 {[%clk 0:00:46]} 44. f4 {[%clk
0:00:48.5]} 44... c4 {[%clk 0:00:46.7]} 45. f5 {[%clk 0:00:48.2]} 45... Rg8
{[%clk 0:00:47.6]} 46. e5 {[%clk 0:00:48.7]} 46... c3 {[%clk 0:00:48.1]} 47. Be3
{[%clk 0:00:45.9]} 47... c2 {[%clk 0:00:48.1]} 48. Ra1 {[%clk 0:00:46.4]} 48...
Kb3 {[%clk 0:00:48.9]} 49. e6 {[%clk 0:00:43.6]} 49... Nc3 {[%clk 0:00:48.5]}
50. f6 {[%clk 0:00:41.7]} 50... Rh8 {[%clk 0:00:36.9]} 51. e7 {[%clk 0:00:38.2]}
51... Nd5 {[%clk 0:00:33.6]} 52. Bg5 {[%clk 0:00:39.3]} 52... Nxf6 {[%clk
0:00:33]} 53. Bxf6 {[%clk 0:00:40]} 53... Rh1+ {[%clk 0:00:33.3]} 54. Kf2 {[%clk
0:00:35.1]} 54... Rxa1 {[%clk 0:00:35.2]} 55. e8=Q {[%clk 0:00:21.9]} 55... c1=Q
{[%clk 0:00:33]} 56. Qb5+ {[%clk 0:00:19.4]} 56... Ka3 {[%clk 0:00:34.1]} 57.
Qa5+ {[%clk 0:00:19.7]} 57... Kb3 {[%clk 0:00:33.5]} 58. Qxa1 {[%clk 0:00:18.8]}
58... Qf4+ {[%clk 0:00:28]} 59. Kg1 {[%clk 0:00:15.8]} 59... Qe3+ {[%clk
0:00:29.1]} 60. Kf1 {[%clk 0:00:13.3]} 60... Qd3+ {[%clk 0:00:26]} 61. Kf2
{[%clk 0:00:14]} 61... Qd2+ {[%clk 0:00:25.2]} 62. Kf3 {[%clk 0:00:13.8]} 62...
Qd3+ {[%clk 0:00:25]} 63. Kf4 {[%clk 0:00:09.9]} 63... Qd2+ {[%clk 0:00:26.2]}
64. Kg3 {[%clk 0:00:10.5]} 64... Qe3+ {[%clk 0:00:27.2]} 65. Kh4 {[%clk
0:00:08]} 65... Qf4+ {[%clk 0:00:23.6]} 66. g4 {[%clk 0:00:07.8]} 66... Qh6+
{[%clk 0:00:23.3]} 67. Kg3 {[%clk 0:00:07.8]} 67... Qe3+ {[%clk 0:00:25]} 68.
Kg2 {[%clk 0:00:09.1]} 68... Qe2+ {[%clk 0:00:25.1]} 69. Kh3 {[%clk 0:00:10.6]}
69... Qe3+ {[%clk 0:00:25.9]} 70. Kh4 {[%clk 0:00:08.6]} 70... Qh6+ {[%clk
0:00:26.6]} 71. Kg3 {[%clk 0:00:09.4]} 71... Qe3+ {[%clk 0:00:28.5]} 72. Kh2
{[%clk 0:00:10.1]} 72... Qf2+ {[%clk 0:00:27.3]} 73. Kh1 {[%clk 0:00:10.8]}
73... Qf3+ {[%clk 0:00:27.9]} 74. Kh2 {[%clk 0:00:10.8]} 74... Qf2+ {[%clk
0:00:27.9]} 75. Kh3 {[%clk 0:00:11.9]} 75... Qe3+ {[%clk 0:00:29.2]} 76. Kg2
{[%clk 0:00:12.7]} 76... Qe2+ {[%clk 0:00:29.7]} 77. Kg1 {[%clk 0:00:13.7]}
77... Qe3+ {[%clk 0:00:21.2]} 78. Kf1 {[%clk 0:00:14.5]} 78... Qf3+ {[%clk
0:00:21.9]} 79. Ke1 {[%clk 0:00:15.7]} 79... Qe3+ {[%clk 0:00:22.8]} 80. Kd1
{[%clk 0:00:16.5]} 80... Qd3+ {[%clk 0:00:21.4]} 81. Ke1 {[%clk 0:00:17.9]}
81... Qe3+ {[%clk 0:00:22.8]} 82. Kf1 {[%clk 0:00:19.5]} 82... Qf3+ {[%clk
0:00:23.8]} 1/2-1/2